bitfinex/quotes_SOLUSD_20250306
["timestamp","ask_amount","ask_price","bid_price","bid_amount"]
[1741286177905,18.3061961,143.78,143.75,0.14216157]
[1741286178105,18.3061961,143.79,143.75,0.14216157]
[1741286178335,18.3061961,143.78,143.73,0.14216157]
[1741286178534,18.3061961,143.78,143.72,245.0391961]
[1741286178535,18.3061961,143.77,143.72,88.933]
[1741286178711,18.3061961,143.76,143.72,6.833]
[1741286179104,18.3061961,143.77,143.72,0.033]
[1741286180734,6.9556,143.77,143.73,0.14216157]
[1741286180919,82.0,143.79,143.75,18.3061961]
[1741286181123,100.3061961,143.82,143.77,0.14216157]
[1741286181520,25.2598961,143.81,143.76,312.0]
[1741286181723,18.3061961,143.78,143.73,6.8]
[1741286182016,18.3061961,143.77,143.72,82.133]
[1741286182621,6.956,143.76,143.72,82.133]
[1741286182821,6.956,143.76,143.72,0.033]
[1741286183027,36.30497496,143.76,143.72,0.033]
[1741286183228,29.6332981,143.73,143.72,0.033]
[1741286183432,20.0,143.71,143.7,0.033]
[1741286184440,29.34897496,143.71,143.7,0.033]
[1741286184623,36.30737496,143.71,143.7,0.033]
[1741286185216,36.5916981,143.71,143.7,0.033]
[1741286185715,36.5916981,143.71,143.64,83.7039]
[1741286185918,29.34897496,143.69,143.65,0.14216157]
[1741286186235,29.34897496,143.7,143.65,0.14216157]
[1741286186739,29.34897496,143.7,143.69,0.033]
[1741286186915,36.30787496,143.7,143.69,0.033]
[1741286187615,55.24184696,143.7,143.69,0.033]
[1741286187822,56.26497653,143.7,143.69,0.033]
[1741286188239,0.28432314,143.67,143.62,82.1]
[1741286188445,29.34897496,143.65,143.62,0.14216157]
[1741286188623,36.30997496,143.66,143.62,0.14216157]
[1741286188941,36.30937496,143.67,143.62,0.14216157]
[1741286189242,29.34897496,143.67,143.62,0.14216157]
[1741286189441,8.3549,143.69,143.64,0.14216157]
[1741286189442,37.70387496,143.69,143.64,0.14216157]
[1741286189744,42.72697496,143.7,143.64,29.49113653]
[1741286189915,42.72697496,143.7,143.64,111.59113653]
[1741286190112,29.34897496,143.69,143.64,82.24216157]
[1741286190331,29.34897496,143.67,143.62,0.14216157]
[1741286190553,48.28294696,143.63,143.57,0.033]
[1741286190711,29.34897496,143.6,143.57,0.033]
[1741286190912,49.34897496,143.59,143.57,0.033]
[1741286192114,20.0,143.58,143.57,0.033]
[1741286192320,49.34897496,143.58,143.57,0.033]
[1741286192816,56.5979981,143.58,143.57,0.033]
[1741286193218,73.72547496,143.58,143.55,0.033]
[1741286193418,29.34897496,143.56,143.55,0.033]
[1741286193645,29.6332981,143.56,143.55,0.033]
[1741286194035,0.28432314,143.55,143.47,29.34897496]
[1741286194235,29.34897496,143.54,143.47,29.34897496]
[1741286194431,0.28432314,143.55,143.5,0.14216157]
[1741286194432,29.34897496,143.55,143.5,0.14216157]
[1741286194633,55.74300255,143.56,143.5,29.34897496]
[1741286194831,36.31517496,143.56,143.5,29.34897496]
[1741286195028,29.34897496,143.59,143.53,29.34897496]
[1741286195232,36.31317496,143.59,143.53,29.34897496]
[1741286195544,6.9642,143.59,143.53,29.34897496]
[1741286195718,42.40647496,143.6,143.53,29.34897496]
[1741286195919,42.40647496,143.6,143.55,0.14216157]
[1741286196540,29.34897496,143.59,143.55,0.14216157]
[1741286196846,29.34897496,143.57,143.54,0.14216157]
[1741286197019,29.34897496,143.57,143.53,312.0]
[1741286197020,36.31427496,143.57,143.53,312.0]
[1741286197422,6.9638,143.6,143.55,29.34897496]
[1741286197921,29.34897496,143.59,143.55,0.14216157]
[1741286198535,29.34897496,143.58,143.55,0.14216157]
[1741286198729,29.34897496,143.59,143.55,0.14216157]
[1741286199045,20.0,143.59,143.55,29.34897496]
[1741286199246,20.0,143.59,143.54,29.49113653]
[1741286199426,29.34897496,143.58,143.54,0.14216157]
[1741286199628,29.34897496,143.56,143.53,0.14216157]
[1741286199844,29.34897496,143.56,143.53,0.033]
[1741286200127,29.34897496,143.57,143.53,0.033]
[1741286201041,29.6332981,143.58,143.53,0.17516157]
[1741286201233,36.31377496,143.58,143.53,0.17516157]
[1741286201754,36.34327496,143.59,143.53,29.52413653]
[1741286202856,36.34327496,143.59,143.53,36.49113653]
[1741286203051,0.03,143.59,143.53,36.49113653]
[1741286203259,0.03,143.59,143.55,0.14216157]
[1741286203942,56.34327496,143.59,143.55,0.14216157]
[1741286204129,29.34897496,143.57,143.55,0.14216157]
[1741286204527,29.34897496,143.58,143.55,0.14216157]
[1741286204927,6.9652,143.57,143.55,0.14216157]
[1741286205135,53.76396949,143.58,143.54,0.14216157]
[1741286205136,31.37989453,143.58,143.54,0.14216157]
[1741286205338,31.37989453,143.58,143.54,111.59113653]
[1741286205339,24.41499453,143.58,143.54,111.59113653]
[1741286206251,0.03,143.59,143.54,423.59113653]
[1741286206473,0.03,143.59,143.56,0.14216157]
[1741286206844,24.61889991,143.59,143.56,0.14216157]
[1741286207354,23.2098107,143.58,143.56,0.14216157]
[1741286207530,23.2098107,143.58,143.55,29.49113653]
[1741286207737,23.2098107,143.58,143.57,0.14216157]
[1741286209254,23.2098107,143.58,143.55,0.14216157]
[1741286209558,30.1746107,143.58,143.55,0.14216157]
[1741286210128,30.1746107,143.58,143.54,29.34897496]
[1741286210329,30.1746107,143.58,143.53,0.033]
[1741286210553,30.1746107,143.58,143.53,0.17516157]
[1741286210854,6.9648,143.58,143.53,0.17516157]
[1741286211156,36.31377496,143.58,143.53,0.17516157]
[1741286211457,6.9648,143.58,143.53,312.17516157]
[1741286212555,6.9648,143.58,143.53,312.033]
[1741286212556,18.39056137,143.57,143.53,312.033]
[1741286212762,18.39056137,143.57,143.54,0.14216157]
[1741286212953,25.35536137,143.58,143.54,0.14216157]
[1741286214874,6.9648,143.58,143.54,0.14216157]
[1741286215357,18.42056137,143.59,143.54,18.53272294]
[1741286215358,0.03,143.59,143.54,18.53272294]
[1741286215535,0.03,143.59,143.56,0.14216157]
[1741286216136,6.9942,143.59,143.56,0.14216157]
[1741286216335,0.03,143.59,143.56,0.14216157]
[1741286216638,25.38486137,143.59,143.54,82.1]
[1741286216841,25.38486137,143.59,143.54,0.14216157]
[1741286217565,25.38486137,143.59,143.54,312.14216157]
[1741286218143,0.03,143.59,143.54,337.49932294]
[1741286218356,0.03,143.59,143.55,18.39056137]
[1741286218669,6.9943,143.59,143.54,337.49932294]
[1741286218969,6.9943,143.59,143.54,25.49932294]
[1741286219272,0.03,143.59,143.55,18.39056137]
[1741286219451,0.03,143.59,143.54,25.49932294]
[1741286219632,0.03,143.59,143.54,0.14216157]
[1741286219838,0.03,143.59,143.54,82.24216157]
[1741286220058,18.42056137,143.59,143.54,82.24216157]
[1741286220339,18.39056137,143.58,143.54,0.14216157]
[1741286220874,18.39056137,143.58,143.53,0.033]
[1741286221062,6.9649,143.58,143.53,0.17516157]
[1741286221239,25.35546137,143.58,143.53,0.17516157]
[1741286221947,25.35546137,143.58,143.53,312.17516157]
[1741286222281,25.38486137,143.59,143.53,330.56572294]
[1741286223045,25.38486137,143.59,143.53,312.17516157]
[1741286223275,18.39056137,143.58,143.53,312.17516157]
[1741286223542,6.9943,143.59,143.53,0.17516157]
[1741286223543,18.39056137,143.57,143.53,0.17516157]
[1741286223939,18.39056137,143.57,143.53,0.033]
[1741286224346,18.39056137,143.58,143.53,0.033]
[1741286224570,18.39056137,143.57,143.53,0.033]
[1741286224749,18.39056137,143.54,143.44,221.489]
[1741286224958,18.39056137,143.5,143.44,83.689]
[1741286225257,6.9691,143.49,143.44,82.1]
[1741286225461,6.9691,143.49,143.44,100.49056137]
[1741286225656,6.9691,143.49,143.45,18.39056137]
[1741286225969,18.39056137,143.5,143.44,100.49056137]
[1741286226177,25.35926137,143.5,143.43,15.6780705]
[1741286226342,25.35926137,143.5,143.44,18.39056137]
[1741286226547,18.39056137,143.47,143.43,313.9061705]
[1741286226742,18.39056137,143.45,143.43,1.9061705]
[1741286227483,18.39056137,143.47,143.43,1.9061705]
[1741286227665,18.39056137,143.44,143.43,1.9061705]
[1741286228658,1.30745271,143.46,143.43,1.9061705]
[1741286228844,18.39056137,143.44,143.43,1.9061705]
[1741286229049,18.39056137,143.45,143.43,1.9061705]
[1741286229249,18.39056137,143.44,143.43,1.9061705]
[1741286230678,25.36126137,143.46,143.43,1.9061705]
[1741286230873,18.39056137,143.45,143.43,1.9061705]
[1741286231086,18.39056137,143.44,143.43,1.9061705]
[1741286231379,25.36206137,143.44,143.43,1.9061705]
[1741286233981,18.39056137,143.45,143.43,1.9061705]
[1741286234659,6.9705,143.46,143.43,1.9061705]
[1741286234660,18.39056137,143.46,143.43,1.9061705]
[1741286235075,6.9701,143.47,143.43,1.9061705]
[1741286235293,18.39056137,143.45,143.43,1.9061705]
[1741286235780,18.39056137,143.44,143.43,1.9391705]
[1741286236292,18.67488451,143.44,143.43,1.9391705]
[1741286236470,19.69801408,143.44,143.43,1.9391705]
[1741286236881,18.39056137,143.44,143.43,1.9391705]
[1741286237089,1.02312957,143.44,143.43,1.9391705]
[1741286237403,25.64638451,143.44,143.43,1.9391705]
[1741286237600,70.52849474,143.44,143.43,1.9391705]
[1741286237804,52.13793337,143.44,143.43,1.9391705]
[1741286238798,52.13793337,143.44,143.41,0.033]
[1741286239087,18.67488451,143.42,143.41,0.033]
[1741286239292,1.02312957,143.43,143.41,0.033]
[1741286239501,20.0,143.42,143.41,0.033]
[1741286239900,18.39056137,143.43,143.41,0.033]
[1741286240066,18.39056137,143.42,143.41,0.033]
[1741286240696,19.38219244,143.44,143.41,0.033]
[1741286240897,18.39056137,143.43,143.41,0.033]
[1741286241098,18.39056137,143.42,143.41,0.033]
[1741286241797,19.69801408,143.42,143.41,0.033]
[1741286241983,20.0,143.4,143.39,0.033]
[1741286242299,39.69801408,143.4,143.39,0.033]
[1741286242472,38.67488451,143.4,143.39,0.033]
[1741286242879,45.64838451,143.4,143.39,0.033]
[1741286243402,45.64838451,143.4,143.3,156.8093]
[1741286243403,64.29803337,143.4,143.3,99.5459]
[1741286243573,18.39056137,143.38,143.32,18.39056137]
[1741286243774,18.39056137,143.37,143.31,25.36836137]
[1741286244206,18.39056137,143.36,143.31,25.36836137]
[1741286244382,18.39056137,143.37,143.31,25.36836137]
[1741286244977,18.39056137,143.36,143.32,312.0]
[1741286245183,18.39056137,143.35,143.29,18.39056137]
[1741286245412,18.39056137,143.34,143.29,18.39056137]
[1741286245909,18.39056137,143.35,143.3,18.39056137]
[1741286246280,18.39056137,143.35,143.29,18.39056137]
[1741286246806,18.39056137,143.35,143.27,0.14216157]
[1741286247024,6.9764,143.34,143.29,18.39056137]
[1741286247194,25.36656137,143.35,143.27,82.1]
[1741286247392,18.39056137,143.34,143.27,82.1]
[1741286247610,18.39056137,143.34,143.28,18.39056137]
[1741286248119,18.39056137,143.32,143.31,0.033]
[1741286248282,18.67488451,143.32,143.31,0.033]
[1741286249110,25.65218451,143.32,143.31,0.033]
[1741286249297,25.65218451,143.32,143.23,107.57226137]
[1741286249298,18.933972,143.3,143.23,0.1]
[1741286249497,18.39056137,143.26,143.23,0.1]
[1741286249711,18.39056137,143.25,143.23,0.1]
[1741286249914,18.39056137,143.26,143.23,0.1]
[1741286250101,18.39056137,143.25,143.23,0.1]
[1741286250411,25.17428451,143.24,143.23,0.1]
[1741286250717,25.17428451,143.24,143.16,0.033]
[1741286250718,0.28432314,143.23,143.16,0.033]
[1741286251015,24.88996137,143.24,143.19,18.39056137]
[1741286251313,18.39056137,143.23,143.18,312.0]
[1741286251481,6.4994,143.24,143.18,330.39056137]
[1741286251482,24.88996137,143.24,143.18,330.39056137]
[1741286251679,25.21056137,143.27,143.21,18.39056137]
[1741286251883,18.39056137,143.27,143.22,18.39056137]
[1741286252218,18.39056137,143.27,143.23,0.14216157]
[1741286252413,1.5531,143.29,143.24,18.39056137]
[1741286252618,29.54245443,143.3,143.24,29.54245443]
[1741286252797,13.2912,143.31,143.25,29.54245443]
[1741286253117,29.54245443,143.32,143.27,36.52215443]
[1741286253909,29.54245443,143.32,143.27,6.9797]
[1741286254081,29.54245443,143.31,143.25,0.14216157]
[1741286254286,29.54245443,143.31,143.25,36.665416]
[1741286254493,29.54245443,143.31,143.27,0.14216157]
[1741286254715,29.54245443,143.34,143.28,29.54245443]
[1741286254886,13.2912,143.35,143.29,29.54245443]
[1741286255082,29.54245443,143.34,143.28,36.52145443]
[1741286255396,29.54245443,143.34,143.28,348.52145443]
[1741286255601,29.54245443,143.34,143.29,29.54245443]
[1741286255800,6.4712,143.35,143.3,29.54245443]
[1741286256003,36.01365443,143.35,143.3,29.54245443]
[1741286256220,29.54245443,143.31,143.22,219.9]
[1741286256514,29.54245443,143.29,143.23,29.54245443]
[1741286256682,29.54245443,143.27,143.21,29.54245443]
[1741286257219,29.54245443,143.28,143.22,29.54245443]
[1741286257903,29.82677757,143.3,143.23,29.54245443]
[1741286258096,29.54245443,143.3,143.24,29.54245443]
[1741286258906,6.9779,143.31,143.24,341.54245443]
[1741286259089,6.9779,143.31,143.24,312.0]
[1741286259289,29.54245443,143.3,143.23,29.684616]
[1741286259493,6.9779,143.31,143.23,29.684616]
[1741286259494,29.54245443,143.29,143.23,29.684616]
[1741286259890,6.9779,143.31,143.23,29.684616]
[1741286260094,29.54245443,143.29,143.23,29.684616]
[1741286261515,36.52095443,143.3,143.23,29.684616]
[1741286261694,6.9785,143.3,143.25,29.54245443]
[1741286262029,29.54245443,143.3,143.24,29.54245443]
[1741286262520,29.54245443,143.3,143.25,312.0]
[1741286262697,29.57245443,143.31,143.26,0.14216157]
[1741286262901,0.03,143.31,143.26,29.684616]
[1741286263301,7.0079,143.31,143.26,0.14216157]
[1741286263507,29.54245443,143.3,143.26,0.14216157]
[1741286263697,29.54245443,143.3,143.25,312.0]
[1741286264291,36.55035443,143.31,143.25,341.54245443]
[1741286264726,7.0079,143.31,143.25,341.54245443]
[1741286264895,29.54245443,143.3,143.25,312.0]
[1741286265219,29.54245443,143.28,143.23,6.82]
[1741286265511,6.9798,143.27,143.23,6.82]
[1741286267102,6.9798,143.27,143.22,29.54245443]
[1741286267416,6.9798,143.27,143.23,29.54245443]
[1741286267818,6.9798,143.27,143.22,29.684616]
[1741286268120,29.54245443,143.25,143.21,312.0]
[1741286269012,29.54245443,143.25,143.2,0.14216157]
[1741286269200,6.9812,143.24,143.2,0.14216157]
[1741286269402,6.9809,143.25,143.21,29.54245443]
[1741286269723,13.1865,143.28,143.23,29.54245443]
[1741286270108,42.72895443,143.28,143.21,0.14216157]
[1741286270340,29.54245443,143.27,143.21,29.684616]
[1741286270514,42.72895443,143.28,143.22,29.54245443]
[1741286270703,6.207,143.28,143.24,29.684616]
[1741286271216,38.17635443,143.3,143.24,36.665816]
[1741286271417,0.03,143.31,143.26,29.54245443]
[1741286271725,36.55035443,143.31,143.25,29.684616]
[1741286271902,29.57245443,143.31,143.25,29.684616]
[1741286272112,29.57245443,143.31,143.25,341.684616]
[1741286272296,36.55035443,143.31,143.25,341.684616]
[1741286272611,0.03,143.27,143.25,312.14216157]
[1741286272819,0.03,143.27,143.26,29.684616]
[1741286273015,0.03,143.27,143.26,0.14216157]
[1741286273526,0.03,143.27,143.26,36.664916]
[1741286274529,0.03,143.27,143.26,25.57983482]
[1741286275811,0.03,143.27,143.26,18.59953482]
[1741286276015,0.03,143.27,143.26,330.59953482]
[1741286276416,0.03,143.27,143.26,0.14216157]
[1741286277314,0.03,143.27,143.26,18.59953482]
[1741286277851,0.03,143.27,143.26,25.57983482]
[1741286278432,0.03,143.27,143.26,107.67983482]
[1741286279138,0.03,143.27,143.26,109.14523163]
[1741286279441,0.03,143.27,143.26,421.14523163]
[1741286279742,0.03,143.27,143.26,550.49953482]
[1741286279910,0.03,143.27,143.26,412.69953482]
[1741286280410,0.03,143.27,143.26,82.24216157]
[1741286280609,0.03,143.27,143.26,118.75904883]
[1741286281610,0.03,143.27,143.26,120.22438833]
[1741286281813,0.03,143.27,143.26,258.02438833]
[1741286282115,0.03,143.27,143.26,256.55904883]
[1741286283428,0.03,143.27,143.26,568.55904883]
[1741286283924,0.03,143.31,143.27,0.14216157]
[1741286284133,0.03,143.31,143.3,29.53658726]
[1741286284337,0.03,143.31,143.3,111.77874883]
[1741286285548,0.03,143.31,143.3,113.24345054]
[1741286285748,6.2104,143.39,143.36,29.67874883]
[1741286286042,6.2104,143.39,143.36,82.24216157]
[1741286286226,6.2104,143.39,143.36,111.77874883]
[1741286286426,1.6799,143.42,143.38,0.14216157]
[1741286286623,8.6525,143.42,143.38,0.14216157]
[1741286286842,1.6799,143.42,143.38,0.14216157]
[1741286287050,1.6799,143.42,143.38,29.67874883]
[1741286287232,0.03,143.42,143.38,29.67874883]
[1741286287549,0.03,143.42,143.38,111.77874883]
[1741286287752,0.03,143.42,143.4,0.14216157]
[1741286287933,0.03,143.42,143.41,0.14216157]
[1741286288947,0.03,143.42,143.4,82.1]
[1741286290161,0.03,143.42,143.39,6.8]
[1741286290457,29.53658726,143.41,143.37,82.1]
[1741286290621,29.53658726,143.41,143.36,0.14216157]
[1741286291326,29.56658726,143.42,143.36,29.67874883]
[1741286291627,29.56658726,143.42,143.36,29.53658726]
[1741286291956,6.973,143.41,143.36,29.53658726]
[1741286292326,36.50958726,143.41,143.36,29.53658726]
[1741286292554,6.973,143.41,143.36,29.53658726]
[1741286293047,53.94208726,143.41,143.36,29.53658726]
[1741286293458,53.94208726,143.41,143.35,36.33658726]
[1741286294726,36.50958726,143.41,143.36,0.14216157]
[1741286295058,36.53928726,143.42,143.37,29.53658726]
[1741286295386,53.97058726,143.42,143.36,29.67874883]
[1741286295530,29.53658726,143.41,143.36,0.14216157]
[1741286295849,6.9735,143.4,143.36,29.67874883]
[1741286296227,6.9735,143.4,143.36,29.53658726]
[1741286296660,6.973,143.41,143.36,29.53658726]
[1741286296968,36.13488726,143.4,143.32,89.0773]
[1741286297273,29.53658726,143.39,143.33,29.53658726]
[1741286297569,36.13488726,143.4,143.34,29.53658726]
[1741286297775,6.5983,143.4,143.34,29.53658726]
[1741286298366,6.9739,143.39,143.33,0.14216157]
[1741286298551,6.9739,143.39,143.34,29.53658726]
[1741286299156,6.9739,143.39,143.33,0.14216157]
[1741286299354,6.9739,143.39,143.33,341.67874883]
[1741286300056,24.4088,143.39,143.33,341.67874883]
[1741286300968,24.4088,143.39,143.35,0.14216157]
[1741286301150,13.5719,143.4,143.36,0.14216157]
[1741286302145,31.0056,143.4,143.35,82.1]
[1741286302351,60.54218726,143.4,143.35,82.1]
[1741286302577,13.5719,143.4,143.36,0.14216157]
[1741286303865,6.5983,143.4,143.36,18.5788068]
[1741286304071,6.5983,143.4,143.37,18.43664523]
[1741286304660,0.03,143.41,143.38,18.43664523]
[1741286304857,0.03,143.41,143.4,18.5788068]
[1741286305383,0.03,143.41,143.4,100.6788068]
[1741286305875,6.42555502,143.44,143.4,100.6788068]
[1741286306060,6.42555502,143.44,143.42,0.14216157]
[1741286306255,6.9712,143.45,143.42,0.14216157]
[1741286309656,0.03,143.46,143.44,18.43664523]
[1741286309858,0.03,143.46,143.45,18.43664523]
[1741286310562,0.03,143.46,143.45,18.5788068]
[1741286311463,0.03,143.46,143.43,89.0718]
[1741286311796,0.03,143.46,143.43,82.1]
[1741286311958,18.46664523,143.46,143.41,82.1]
[1741286312154,0.03,143.46,143.42,18.5788068]
[1741286312866,0.03,143.46,143.44,18.43664523]
[1741286313478,0.03,143.46,143.44,0.14216157]
[1741286314185,0.03,143.46,143.43,18.43664523]
[1741286314388,0.03,143.46,143.42,82.1]
[1741286314682,0.03,143.46,143.42,100.53664523]
[1741286315569,0.03,143.46,143.43,0.14216157]
[1741286315967,0.03,143.46,143.43,18.5788068]
[1741286316171,0.03,143.46,143.44,18.43664523]
[1741286316773,0.03,143.46,143.45,18.5788068]
[1741286317460,0.03,143.46,143.45,0.14216157]
[1741286317862,0.03,143.46,143.44,82.1]
[1741286318467,18.43664523,143.45,143.41,82.1]
[1741286318780,18.43664523,143.43,143.39,82.1]
[1741286318986,18.43664523,143.41,143.36,394.1]
[1741286319186,18.43664523,143.4,143.34,107.33664523]
[1741286319772,18.43664523,143.4,143.35,0.14216157]
[1741286320398,18.43664523,143.4,143.34,18.43664523]
[1741286320698,24.51674523,143.37,143.32,219.9]
[1741286320997,26.17264523,143.37,143.32,82.1]
[1741286321170,6.9754,143.36,143.32,82.1]
[1741286321498,18.43664523,143.35,143.31,0.033]
[1741286321693,18.43664523,143.35,143.34,0.033]
[1741286321899,6.9754,143.36,143.34,0.033]
[1741286322089,25.41204523,143.36,143.34,0.033]
[1741286322464,6.9754,143.36,143.34,0.033]
[1741286322664,36.49063227,143.36,143.34,0.033]
[1741286322968,29.51523227,143.35,143.34,0.033]
[1741286323660,36.49113227,143.35,143.34,0.033]
[1741286323869,55.42510427,143.35,143.34,0.033]
[1741286324368,36.49113227,143.35,143.34,0.033]
[1741286324873,6.9755,143.36,143.34,0.033]
[1741286325079,29.51523227,143.35,143.34,0.033]
[1741286325598,7.736,143.37,143.34,0.033]
[1741286325897,36.48923227,143.39,143.34,0.17516157]
[1741286326796,36.48923227,143.39,143.34,312.17516157]
[1741286327097,6.1478,143.4,143.35,29.51523227]
[1741286327398,6.1478,143.4,143.36,29.51523227]
[1741286328086,1.5021,143.41,143.37,0.14216157]
[1741286328294,29.51523227,143.42,143.37,0.14216157]
[1741286328879,36.48803227,143.42,143.37,0.14216157]
[1741286329196,29.51523227,143.4,143.36,82.1]
[1741286329492,29.51523227,143.41,143.36,82.1]
[1741286329869,6.9728,143.42,143.37,0.14216157]
[1741286330091,6.9728,143.42,143.37,29.65739384]
[1741286330305,36.48803227,143.42,143.36,111.61523227]
[1741286330473,36.48803227,143.42,143.37,312.14216157]
[1741286330869,111.51523227,143.43,143.37,341.65739384]
[1741286331071,118.48733227,143.43,143.37,341.65739384]
[1741286331697,6.4592,143.44,143.39,29.65739384]
[1741286331997,13.4309,143.44,143.39,111.75739384]
[1741286332292,6.9717,143.44,143.39,111.75739384]
[1741286333496,29.51523227,143.43,143.39,82.1]
[1741286334581,29.51523227,143.41,143.39,82.1]
[1741286334781,29.51523227,143.41,143.36,394.1]
[1741286334982,6.9739,143.39,143.36,82.1]
[1741286335373,36.48913227,143.39,143.34,0.033]
[1741286335776,29.51523227,143.4,143.35,0.14216157]
[1741286336003,36.48873227,143.4,143.35,0.14216157]
[1741286336579,29.51523227,143.4,143.35,0.14216157]
[1741286336896,29.51523227,143.41,143.35,29.65739384]
[1741286337099,31.08623227,143.42,143.37,0.14216157]
[1741286337482,29.51523227,143.42,143.37,0.14216157]
[1741286337999,29.51523227,143.42,143.37,312.14216157]
[1741286339091,29.51523227,143.41,143.35,29.65739384]
[1741286339306,36.48813227,143.42,143.35,36.63319384]
[1741286339806,29.51523227,143.41,143.35,36.63319384]
[1741286340422,6.9729,143.42,143.35,36.63319384]
[1741286340423,29.51523227,143.42,143.36,29.51523227]
[1741286341215,0.03,143.44,143.39,0.14216157]
[1741286341421,0.03,143.44,143.4,29.51523227]
[1741286341616,0.03,143.44,143.39,82.24216157]
[1741286341617,0.03,143.44,143.39,111.75739384]
[1741286342117,0.03,143.44,143.4,0.14216157]
[1741286342317,0.03,143.44,143.4,29.65739384]
[1741286342819,29.51523227,143.42,143.34,219.933]
[1741286343018,29.51523227,143.4,143.34,110.88333227]
[1741286343322,36.48903227,143.4,143.35,0.14216157]
[1741286344023,29.51523227,143.37,143.34,81.3681]
[1741286344322,29.51523227,143.36,143.34,81.3681]
[1741286345403,29.51523227,143.37,143.34,81.3681]
[1741286345607,36.49023227,143.37,143.34,81.3681]
[1741286345808,82.0,143.41,143.36,29.51523227]
[1741286345992,6.9731,143.41,143.36,29.51523227]
[1741286346702,6.9726,143.42,143.37,29.51523227]
[1741286346911,36.48783227,143.42,143.36,29.65739384]
[1741286347121,29.51523227,143.4,143.34,81.4011]
[1741286347325,29.51523227,143.39,143.34,81.4011]
[1741286347633,25.42702957,143.42,143.34,0.033]
[1741286347634,29.51523227,143.37,143.34,0.033]
[1741286347925,29.51523227,143.35,143.34,0.033]
[1741286348291,29.51523227,143.35,143.34,0.0001]
[1741286348524,30.53836184,143.35,143.34,0.0001]
[1741286348902,49.47233384,143.35,143.34,0.0001]
[1741286349821,56.44823384,143.35,143.34,0.0001]
[1741286350219,18.933972,143.34,143.31,0.0001]
[1741286350440,29.51523227,143.32,143.24,429.68333227]
[1741286350613,29.51523227,143.3,143.24,429.68333227]
[1741286350943,29.51523227,143.3,143.25,0.14216157]
[1741286351522,29.51523227,143.3,143.24,422.88333227]
[1741286351732,36.49383227,143.3,143.24,422.88333227]
[1741286351917,29.51523227,143.31,143.25,29.51523227]
[1741286352533,29.51523227,143.33,143.27,29.51523227]
[1741286352915,29.51523227,143.32,143.26,29.65739384]
[1741286353821,36.49263227,143.32,143.26,29.65739384]
[1741286354009,29.51523227,143.31,143.26,0.14216157]
[1741286354440,29.51523227,143.3,143.26,0.14216157]
[1741286354647,29.51523227,143.31,143.26,0.14216157]
[1741286355312,29.51523227,143.29,143.24,81.3681]
[1741286355805,29.51523227,143.27,143.22,81.4011]
[1741286356241,118.49443227,143.29,143.23,29.51523227]
[1741286356615,118.49443227,143.29,143.24,0.14216157]
[1741286356821,118.49443227,143.29,143.22,0.033]
[1741286356822,82.0,143.28,143.22,0.033]
[1741286357057,29.51523227,143.27,143.22,0.033]
[1741286357628,29.51523227,143.26,143.25,0.033]
[1741286357826,36.49553227,143.26,143.25,0.033]
[1741286358129,82.0,143.27,143.25,0.033]
[1741286358130,111.51523227,143.27,143.25,0.033]
[1741286358335,82.0,143.27,143.25,0.033]
[1741286359851,29.51523227,143.3,143.25,0.033]
[1741286360058,82.0,143.31,143.25,29.54823227]
[1741286360351,29.51523227,143.3,143.25,0.033]
[1741286360519,82.0,143.31,143.25,0.033]
[1741286360520,29.51523227,143.29,143.25,0.033]
[1741286362026,36.49403227,143.3,143.25,0.033]
[1741286362760,29.51523227,143.29,143.25,312.033]
[1741286363228,36.49413227,143.29,143.25,312.033]
[1741286363524,6.9789,143.29,143.25,312.033]
[1741286364028,6.9789,143.29,143.25,0.033]
[1741286364225,36.49413227,143.29,143.25,0.033]
[1741286364429,29.51523227,143.27,143.25,0.033]
[1741286364738,29.51523227,143.26,143.25,0.033]
[1741286364959,29.51523227,143.27,143.25,0.033]
[1741286365121,36.49503227,143.27,143.25,0.033]
[1741286365322,6.9798,143.27,143.25,0.033]
[1741286365936,29.51523227,143.26,143.25,0.033]
[1741286366531,6.9798,143.27,143.25,0.033]
[1741286366729,6.9794,143.28,143.25,0.033]
[1741286366930,29.51523227,143.27,143.25,0.033]